Workbook

Sheet Finish Times
A4: MUST | C4: FLEET 1
A5: BE | C5: FLEET 2
A6: IN ALPHA | C6: FLEET 3
A7: ORDER | C7: FLEET 4
F8: Finish Time
A9: BOAT NAME | B9: FLEET | C9: BOAT | D9: SAIL # | E9: SKIPPER | F9: MINUTES | G9: SECONDS
A10: Alarming | B10: 4 | C10: S-2 9.2 | D10: 505 | E10: Oginz | F10: 47 | G10: 9
A11: Always Something | B11: 3 | C11: Hunter 23 | D11: 1256 | E11: Gobble | F11: 44 | G11: 25
A12: Bandit | B12: 1 | C12: J/24 | D12: 2792 | E12: Cliborne | F12: 57 | G12: 9
A13: Boogie Board | B13: 1 | C13: J/24 | D13: 1742 | E13: Maloney
A14: Catch 22 | B14: 1 | C14: J22 | D14: 826 | E14: Schiable | F14: 80 | G14: 30
A15: Courageous | B15: 2 | C15: Harbor 20 | D15: 278 | E15: Tunnell
A16: Dark Horse | B16: 1 | C16: J/24 | D16: 1024 | E16: Forqurean | F16: 59 | G16: 11
A17: Destiny | B17: 2 | C17: Alerion 20 | D17: 6 | E17: Whitt | F17: 69 | G17: 50
A18: Felicite | B18: 4 | C18: S-2 27 IB | D18: 13 | E18: Johnson | F18: 41 | G18: 19
A19: Fenix | B19: 2 | C19: San Juan 24 | D19: 556 | E19: Firing
A20: Fever | B20: 3 | C20: Ericson 23 | D20: 269 | E20: Short
A21: Fools Game | B21: 2 | C21: Pearson 26 | D21: 1183 | E21: Hull
A23: Gotcha | B23: 2 | C23: S-2 6.7 | D23: 75 | E23: Theis
A24: ie ie bang bang | B24: 4 | C24: Hunter 365 | D24: 8 | E24: Gillespie
A25: King Bills Revenge | B25: 3 | C25: San Juan 21 | E25: Gillespie
A26: Little Wing | B26: 4 | C26: Beneteau 29 | D26: 485 | E26: DeMestro | F26: 41 | G26: 32
A27: Majical | B27: 3 | C27: Cal 25 | D27: 1687 | E27: Witten
A28: Miss Virginia | B28: 3 | C28: Hunter 23.5 | D28: 1309 | E28: Perdue | F28: 50 | G28: 23
A29: More Mischief | B29: 4 | C29: Beneteau 285 | D29: 144 | E29: Gearhart
A30: Rascal | B30: 1 | C30: J/24 | D30: 3511 | E30: Phillip | F30: 55 | G30: 37
A31: Second Wind | B31: 3 | C31: Ericson 23 | D31: 470 | E31: Schraw | F31: 46 | G31: 4
A32: Severence | B32: 2 | C32: C&C 25 | D32: 14755 | E32: Evans
A33: Stoic | B33: 2 | C33: Harbor 20 | D33: 330 | E33: Hemler | F33: 67 | G33: 42
A34: StressLess | B34: 2 | C34: Harbor 20 | D34: 212 | E34: Breckenridge | F34: 67 | G34: 45
A35: Synergy | B35: 2 | C35: Harbor 20 | D35: 215 | E35: Miekina
A36: Te Aroha | B36: 4 | C36: Beneteau 285 | D36: 285 | E36: Short
A37: Time Warp | B37: 1 | C37: J/24 | D37: 1248 | E37: Sampson
A38: Tundra Swan | B38: 3 | C38: Hunter 23 | D38: 1256
A39: UDO | B39: 1 | C39: VX One | D39: 119 | E39: Gietl
A40: Willaway | B40: 4 | C40: Columbia 29 | D40: 222 | E40: Conover

Sheet Fleet 1
A1: Control Z to run macro | Y1: Winner
Y2: =MIN(N10:N23) -> 51.97819315
A3: 0 | B3: <-----Minutes after first start
A5: Blackwater Yacht Racing Association - Sign Up Sheet Fleet I (ONE) | Z5: Test
A6: Date: Oct. 8, 2016 2016 Fall Series Race 6 RC: Short and Conover | Y6: new tcf = | Z6: should =
A7: Windward Leeward Race in Bull Run with 13 to 23 mph wind | P7: Time | Q7: Time | R7: Approx | T7: Finish Calculations | Y7: Winner Adj Time | Z7: Winner Adj Time | AC7: # of Boats
G8: Handicap | I8: TCF | K8: Finish Time | M8: Calc(1) | N8: Adj.(2) | P8: Behind | Q8: Behind | R8: H'cap | T8: S for Spin | Y8: /observed | AC8: =MAX(AC10:AC23) -> 4
A9: Skipper | B9: Boat Name | C9: Initials | D9: Guest? | E9: Boat | F9: Sail # | G9: Spin* | H9: Non-Spin* | I9: Spin* | J9: Non-Spin* | K9: Min. | L9: Sec. | M9: Min.dd | N9: Time | O9: Place | P9: Winner | Q9: Boat Ahead | R9: to win | T9: N for non
A10: Cliborne | B10: Bandit | E10: J/24 | F10: 2792 | G10: 170 | H10: =IFERROR(G10+15,"") -> 185 | I10: =IF(T10 = "s",1000/(900+G10),"") -> 0.9345794393 | J10: =IF(T10 ="n",1000/(900+H10),"") ->  | K10: =IF($AK10>0,(VLOOKUP($B10,'Finish Times'!$A$10:$G$40,6,FALSE)),"") -> 57 | L10: =IF($AK10>0,(VLOOKUP($B10,'Finish Times'!$A$10:$G$40,7,FALSE)),"") -> 9 | M10: =IF(AK10>0,(K10+L10/60)-A$3," ") -> 57.15 | N10: =IFERROR(U10," ") -> 53.41121495 | O10: 2 | P10: =IFERROR(N10-$Y$2,"") -> 1.433021807 | Q10: 1.433021807 | R10: =IFERROR(ROUND((1000/Y10)-900,0),"") -> 199 | T10: s | U10: =IFERROR(IF(M10>0,IF(T10="s",M10*I10,0)+IF(T10="n",M10*J10,0)," "),"") -> 53.41121495 | V10: =IFERROR(RANK(N10,$N$10:$N$23,1),"") -> 2 | Y10: =IFERROR($Y$2/M10,"") -> 0.909504692 | Z10: =IFERROR(M10*Y10,"") -> 51.97819315 | AB10: 1 | AC10: 2 | AD10: 1.433021807 | AE10: 1.433021807 | AH10: 55 | AI10: 39 | AK10: =(VLOOKUP($B10,'Finish Times'!$A$10:$G$40,6,FALSE)) -> 57
A11: Forqurean | B11: Dark Horse | E11: J/24 | F11: 1024 | G11: 170 | H11: 185 | I11: 0.9345794393 | J11: =IF(T11 ="n",1000/(900+H11),"") ->  | K11: =IF($AK11>0,(VLOOKUP($B11,'Finish Times'!$A$10:$G$40,6,FALSE)),"") -> 59 | L11: =IF($AK11>0,(VLOOKUP($B11,'Finish Times'!$A$10:$G$40,7,FALSE)),"") -> 11 | M11: =IF(AK11>0,(K11+L11/60)-A$3," ") -> 59.18333333 | N11: 55.31152648 | O11: 3 | P11: 3.333333333 | Q11: 1.900311526 | R11: 239 | T11: s | U11: =IFERROR(IF(M11>0,IF(T11="s",M11*I11,0)+IF(T11="n",M11*J11,0)," "),"") -> 55.31152648 | V11: 3 | Y11: 0.8782572765 | Z11: =IFERROR(M11*Y11,"") -> 51.97819315 | AB11: 2 | AC11: 3 | AD11: 3.333333333 | AE11: 1.900311526 | AH11: 56 | AI11: 22 | AK11: =(VLOOKUP($B11,'Finish Times'!$A$10:$G$40,6,FALSE)) -> 59
A12: Maloney | B12: Boogie Board | E12: J/24 | F12: 1742 | G12: 170 | H12: 185 | I12: 0.9345794393 | J12: =IF(T12 ="n",1000/(900+H12),"") ->  | K12: =IF($AK12>0,(VLOOKUP($B12,'Finish Times'!$A$10:$G$40,6,FALSE)),"") ->  | L12: =IF($AK12>0,(VLOOKUP($B12,'Finish Times'!$A$10:$G$40,7,FALSE)),"") ->  | T12: s | AB12: 3 | AH12: 54 | AI12: 9 | AK12: =(VLOOKUP($B12,'Finish Times'!$A$10:$G$40,6,FALSE)) -> 0
A13: Phillip | B13: Rascal | E13: J/24 | F13: 3511 | G13: 170 | H13: 185 | I13: 0.9345794393 | J13: =IF(T13 ="n",1000/(900+H13),"") ->  | K13: =IF($AK13>0,(VLOOKUP($B13,'Finish Times'!$A$10:$G$40,6,FALSE)),"") -> 55 | L13: =IF($AK13>0,(VLOOKUP($B13,'Finish Times'!$A$10:$G$40,7,FALSE)),"") -> 37 | M13: 55.61666667 | N13: 51.97819315 | O13: 1 | P13: 0 | R13: 170 | T13: s | U13: 51.97819315 | V13: 1 | Y13: 0.9345794393 | Z13: 51.97819315 | AB13: 4 | AC13: 1 | AD13: 0 | AH13: 62 | AI13: 59 | AK13: =(VLOOKUP($B13,'Finish Times'!$A$10:$G$40,6,FALSE)) -> 55
A14: Sampson | B14: Time Warp | E14: J/24 | F14: 1248 | G14: 170 | H14: 185 | I14: 0.9345794393 | J14: =IF(T14 ="n",1000/(900+H14),"") ->  | K14: =IF($AK14>0,(VLOOKUP($B14,'Finish Times'!$A$10:$G$40,6,FALSE)),"") ->  | L14: =IF($AK14>0,(VLOOKUP($B14,'Finish Times'!$A$10:$G$40,7,FALSE)),"") ->  | T14: s | AB14: 5 | AH14: 59 | AI14: 12 | AK14: =(VLOOKUP($B14,'Finish Times'!$A$10:$G$40,6,FALSE)) -> 0
A15: Schiable | B15: Catch 22 | E15: J22 | F15: 826 | G15: 177 | H15: 192 | I15: 0.9285051068 | K15: =IF($AK15>0,(VLOOKUP($B15,'Finish Times'!$A$10:$G$40,6,FALSE)),"") -> 80 | L15: =IF($AK15>0,(VLOOKUP($B15,'Finish Times'!$A$10:$G$40,7,FALSE)),"") -> 30 | M15: 80.5 | N15: 74.7446611 | O15: 4 | P15: 22.76646795 | Q15: 19.43313462 | R15: 649 | T15: s | U15: 74.7446611 | V15: 4 | Y15: 0.6456918403 | Z15: 51.97819315 | AB15: 6 | AC15: 4 | AD15: 22.76646795 | AE15: 19.43313462 | AH15: 56 | AI15: 58 | AK15: =(VLOOKUP($B15,'Finish Times'!$A$10:$G$40,6,FALSE)) -> 80
A16: Gietl | B16: UDO | E16: VX One | F16: 119 | G16: 107 | H16: 122 | I16: 0.9930486594 | K16: =IF($AK16>0,(VLOOKUP($B16,'Finish Times'!$A$10:$G$40,6,FALSE)),"") ->  | L16: =IF($AK16>0,(VLOOKUP($B16,'Finish Times'!$A$10:$G$40,7,FALSE)),"") ->  | T16: s | AB16: 8 | AK16: =(VLOOKUP($B16,'Finish Times'!$A$10:$G$40,6,FALSE)) -> 0
J17: =IF(T17 ="n",1000/(900+H17),"") ->  | T17: s | AB17: 9 | AK17: =(VLOOKUP($B17,'Finish Times'!$A$10:$G$40,6,FALSE)) -> 
M18: =IF(K18>0,(K18+L18/60)-A$3," ") ->  | N18: =IFERROR(U18," ") ->  | O18: =IFERROR(V18," ") ->  | P18: =IFERROR(N18-$Y$2,"") ->  | R18: =IFERROR(ROUND((1000/Y18)-900,0),"") ->  | T18: n | AB18: 10
T19: n | AB19: 11
T20: n | AB20: 12
M21: =IF(K21>0,(K21+L21/60)-A$3," ") ->  | T21: n | AB21: 13
T22: n | AB22: 14
T23: n | AB23: 15
A24: Race Start Time | N24: FLEET ONE | Q24: 0 | AB24: 16 | AE24: 0
A25: (In case race timer has issues, use clock time as backup and do the math) | Q25: 0 | AB25: 17 | AE25: 0
A26: (1) Convert seconds to decimal equivalent - see reference sheet | Q26: 0 | AB26: 18 | AE26: 0
A27: (2) Multiply time in minutes by circled TCF | Q27: 0 | AB27: 19 | AE27: 0
Q28: 0 | AE28: 0
A29: FLEET ONE | M29: RACE #

Sheet Finish Times (2) (hidden)
A4: MUST | C4: FLEET 1
A5: BE | C5: FLEET 2
A6: IN ALPHA | C6: FLEET 3
A7: ORDER | C7: FLEET 4
F8: Finish Time
A9: BOAT NAME | B9: FLEET | C9: BOAT | D9: SAIL # | E9: SKIPPER | F9: MINUTES | G9: SECONDS
A10: Bandit | B10: 1 | C10: J/24 | D10: 2792 | E10: Cliborne
A11: Blunder Bus | B11: 1 | C11: J/24 | E11: Hardy
A12: Boogie Board | B12: 1 | C12: J/24 | D12: 1742 | E12: Maloney
A13: Catch 22 | B13: 1 | C13: J22 | D13: 826 | E13: Schiable
A14: Dark Horse | B14: 1 | C14: J/24 | D14: 1024 | E14: Forqurean
A15: Fox Trot | B15: 1 | C15: Colgate 26 | E15: Haddon
A16: Rascal | B16: 1 | C16: J/24 | D16: 3511 | E16: Phillip
A17: Time Warp | B17: 1 | C17: J/24 | D17: 1248 | E17: Sampson
A18: UDO | B18: 1 | C18: VX One | D18: 119 | E18: Gietl
A19: Destiny | B19: 2 | C19: Alerion 20 | D19: 6 | E19: Whitt
A20: Fools Game | B20: 2 | C20: Pearson 26 | D20: 1183 | E20: Hull
A21: Gotcha | B21: 2 | C21: S-2 6.7 | D21: 75 | E21: Theis
A22: Majical | B22: 2 | C22: Cal 25 | D22: 1687 | E22: Witten
A23: Severence | B23: 2 | C23: C&C 25 | D23: 14755 | E23: Evans
A24: Stoic | B24: 2 | C24: Harbor 20 | D24: 330 | E24: Hemler
A25: StressLess | B25: 2 | C25: Harbor 20 | D25: 212 | E25: Breckenridge
A26: Synergy | B26: 2 | C26: Harbor 20 | D26: 215 | E26: Miekina
A27: Circle Back | B27: 3 | C27: Catalina 22 | D27: C22 | E27: Nash
A28: Miss Virginia | B28: 3 | C28: Hunter 23.5 | D28: 1309 | E28: Perdue
A29: Norse Raider | B29: 3 | C29: Ericson 23 | D29: 23 | E29: Short
A30: Second Wind | B30: 3 | C30: Ericson 23 | D30: 470 | E30: Schraw
A31: Tundra Swan | B31: 3 | C31: Hunter 23 | D31: 1256 | E31: Gobble
A32: Alarming | B32: 4 | C32: S-2 9.2 | D32: 505 | E32: Oginz
A33: BILL | B33: 4 | C33: Hunter 356 | E33: Gillespie
A34: Felicite | B34: 4 | C34: S-2 27 IB | D34: 13 | E34: Johnson
A35: Got to Go | B35: 4 | C35: Catalina 30 | D35: 97 | E35: Forrester
A36: Janet Anne | B36: 4 | C36: Catalina 25 | D36: 5155 | E36: Tunnell
A37: Little Wing | B37: 4 | C37: Beneteau 29 | D37: 485 | E37: DeMestro
A38: More Mischief | B38: 4 | C38: Beneteau 285 | D38: 144 | E38: Gearhart
A39: Willaway | B39: 4 | C39: Columbia 29 | D39: 222 | E39: Conover

Sheet Fleet 2
Y1: Winner
Y2: =MIN(N10:N24) -> 59.64757709
A3: 0 | B3: <-----Minutes after first start
A5: Blackwater Yacht Racing Association - Sign Up Sheet Fleet II (TWO) | Z5: Test
A6: Date: Oct. 8, 2016 2016 Fall Series Race 6 RC: Short and Conover | Y6: new tcf = | Z6: should =
A7: Windward Leeward Race in Bull Run with 13 to 23 mph wind | P7: Time | Q7: Time | R7: Approx | T7: Finish Calculations | Y7: Winner Adj Time | Z7: Winner Adj Time | AC7: # of Boats
G8: Handicap | I8: TCF | K8: Finish Time | M8: Calc(1) | N8: Adj.(2) | P8: Behind | Q8: Behind | R8: H'cap | T8: S for Spin | Y8: /observed | AC8: =MAX(AC10:AC24) -> 3
A9: Skipper | B9: Boat Name | C9: Initials | D9: Guest? | E9: Boat | F9: Sail # | G9: Spin* | H9: Non-Spin* | I9: Spin* | J9: Non-Spin* | K9: Min. | L9: Sec. | M9: Min.dd | N9: Time | O9: Place | P9: Winner | Q9: Boat Ahead | R9: to win | T9: N for non
A10: Theis | B10: Gotcha | E10: S-2 6.7 | F10: 75 | G10: 208 | H10: =IFERROR(G10+15,"") -> 223 | I10: =IF(T10 = "s",1000/(900+G10),"") -> 0.9025270758 | J10: =IF(T10 ="n",1000/(900+H10),"") ->  | K10: =IF(AK10>0,VLOOKUP($B10,'Finish Times'!$A$10:$G$40,6,FALSE),"") ->  | L10: =IF(AK10>0,VLOOKUP($B10,'Finish Times'!$A$10:$G$40,7,FALSE),"") ->  | M10: =IF(AK10>0,(K10+L10/60)-A$3," ") ->  | N10: =IFERROR(U10," ") ->  | P10: =IFERROR(N10-$Y$2,"") ->  | R10: =IFERROR(ROUND((1000/Y10)-900,0),"") ->  | T10: s | U10: =IFERROR(IF(M10>0,IF(T10="s",M10*I10,0)+IF(T10="n",M10*J10,0)," "),"") ->  | V10: =IFERROR(RANK(N10,$N$10:$N$24,1),"") ->  | Y10: =IFERROR($Y$2/M10,"") ->  | Z10: =IFERROR(M10*Y10,"") ->  | AB10: 1 | AH10: 55 | AI10: 39 | AK10: =VLOOKUP($B10,'Finish Times'!$A$10:$G$40,6,FALSE) -> 0
A11: Hull | B11: Fools Game | E11: Pearson 26 | F11: 1183 | G11: 216 | H11: =IFERROR(G11+15,"") -> 231 | I11: =IF(T11 = "s",1000/(900+G11),"") -> 0.8960573477 | J11: =IF(T11 ="n",1000/(900+H11),"") ->  | K11: =IF(AK11>0,VLOOKUP($B11,'Finish Times'!$A$10:$G$40,6,FALSE),"") ->  | L11: =IF(AK11>0,VLOOKUP($B11,'Finish Times'!$A$10:$G$40,7,FALSE),"") ->  | M11: =IF(AK11>0,(K11+L11/60)-A$3," ") ->  | T11: s | U11: =IFERROR(IF(M11>0,IF(T11="s",M11*I11,0)+IF(T11="n",M11*J11,0)," "),"") ->  | V11: =IFERROR(RANK(N11,$N$10:$N$24,1),"") ->  | Z11: =IFERROR(M11*Y11,"") ->  | AB11: 2 | AH11: 56 | AI11: 22 | AK11: =VLOOKUP($B11,'Finish Times'!$A$10:$G$40,6,FALSE) -> 0
A12: Evans | B12: Severence | E12: C&C 25 | F12: 14755 | G12: 218 | H12: 233 | I12: =IF(T12 = "s",1000/(900+G12),"") -> 0.8944543828 | J12: =IF(T12 ="n",1000/(900+H12),"") ->  | K12: =IF(AK12>0,VLOOKUP($B12,'Finish Times'!$A$10:$G$40,6,FALSE),"") ->  | L12: =IF(AK12>0,VLOOKUP($B12,'Finish Times'!$A$10:$G$40,7,FALSE),"") ->  | T12: s | AB12: 3 | AH12: 54 | AI12: 9 | AK12: =VLOOKUP($B12,'Finish Times'!$A$10:$G$40,6,FALSE) -> 0
A13: Witten | B13: Majical | E13: Cal 25 | F13: 1687 | G13: 224 | H13: 239 | I13: =IF(T13 = "s",1000/(900+G13),"") -> 0.8896797153 | J13: =IF(T13 ="n",1000/(900+H13),"") ->  | K13: =IF(AK13>0,VLOOKUP($B13,'Finish Times'!$A$10:$G$40,6,FALSE),"") ->  | L13: =IF(AK13>0,VLOOKUP($B13,'Finish Times'!$A$10:$G$40,7,FALSE),"") ->  | T13: s | AB13: 4 | AH13: 62 | AI13: 59 | AK13: =VLOOKUP($B13,'Finish Times'!$A$10:$G$40,6,FALSE) -> 0
A14: Breckenridge | B14: StressLess | E14: Harbor 20 | F14: 212 | G14: 220 | H14: =IFERROR(G14+15,"") -> 235 | I14: =IF(T14 = "s",1000/(900+G14),"") ->  | J14: =IF(T14 ="n",1000/(900+H14),"") -> 0.8810572687 | K14: =IF(AK14>0,VLOOKUP($B14,'Finish Times'!$A$10:$G$40,6,FALSE),"") -> 67 | L14: =IF(AK14>0,VLOOKUP($B14,'Finish Times'!$A$10:$G$40,7,FALSE),"") -> 45 | M14: 67.75 | N14: =IFERROR(U14," ") -> 59.69162996 | O14: =IFERROR(V14," ") -> 2 | P14: =IFERROR(N14-$Y$2,"") -> 0.04405286344 | Q14: 0.04405286344 | R14: =IFERROR(ROUND((1000/Y14)-900,0),"") -> 236 | T14: n | U14: 59.69162996 | V14: 2 | Y14: 0.880407042 | Z14: 59.64757709 | AB14: 5 | AC14: 2 | AD14: 0.04405286344 | AE14: 0.04405286344 | AH14: 59 | AI14: 12 | AK14: =VLOOKUP($B14,'Finish Times'!$A$10:$G$40,6,FALSE) -> 67
A15: Miekina | B15: Synergy | E15: Harbor 20 | F15: 215 | G15: 220 | H15: 235 | J15: 0.8810572687 | K15: =IF(AK15>0,VLOOKUP($B15,'Finish Times'!$A$10:$G$40,6,FALSE),"") ->  | L15: =IF(AK15>0,VLOOKUP($B15,'Finish Times'!$A$10:$G$40,7,FALSE),"") ->  | T15: n | AB15: 6 | AH15: 56 | AI15: 58 | AK15: =VLOOKUP($B15,'Finish Times'!$A$10:$G$40,6,FALSE) -> 0
A16: Hemler | B16: Stoic | E16: Harbor 20 | F16: 330 | G16: 220 | H16: 235 | J16: 0.8810572687 | K16: =IF(AK16>0,VLOOKUP($B16,'Finish Times'!$A$10:$G$40,6,FALSE),"") -> 67 | L16: =IF(AK16>0,VLOOKUP($B16,'Finish Times'!$A$10:$G$40,7,FALSE),"") -> 42 | M16: 67.7 | N16: 59.64757709 | O16: 1 | P16: 0 | R16: 235 | T16: n | U16: 59.64757709 | V16: 1 | Y16: 0.8810572687 | Z16: 59.64757709 | AB16: 7 | AC16: 1 | AD16: 0 | AH16: 64 | AI16: 47 | AK16: =VLOOKUP($B16,'Finish Times'!$A$10:$G$40,6,FALSE) -> 67
A17: Tunnell | B17: Courageous | E17: Harbor 20 | F17: 278 | G17: 220 | H17: 235 | J17: 0.8810572687 | K17: =IF(AK17>0,VLOOKUP($B17,'Finish Times'!$A$10:$G$40,6,FALSE),"") ->  | L17: =IF(AK17>0,VLOOKUP($B17,'Finish Times'!$A$10:$G$40,7,FALSE),"") ->  | T17: n | AB17: 8 | AK17: =VLOOKUP($B17,'Finish Times'!$A$10:$G$40,6,FALSE) -> 0
A18: Whitt | B18: Destiny | E18: Alerion 20 | F18: 6 | G18: 223 | H18: =IFERROR(G18+15,"") -> 238 | I18: =IF(T18 = "s",1000/(900+G18),"") ->  | J18: =IF(T18 ="n",1000/(900+H18),"") -> 0.8787346221 | K18: =IF(AK18>0,VLOOKUP($B18,'Finish Times'!$A$10:$G$40,6,FALSE),"") -> 69 | L18: =IF(AK18>0,VLOOKUP($B18,'Finish Times'!$A$10:$G$40,7,FALSE),"") -> 50 | M18: =IF(AK18>0,(K18+L18/60)-A$3," ") -> 69.83333333 | N18: =IFERROR(U18," ") -> 61.36496778 | O18: =IFERROR(V18," ") -> 3 | P18: =IFERROR(N18-$Y$2,"") -> 1.717390687 | Q18: 1.673337824 | R18: =IFERROR(ROUND((1000/Y18)-900,0),"") -> 271 | T18: n | U18: 61.36496778 | V18: 3 | Y18: 0.8541419154 | Z18: 59.64757709 | AB18: 9 | AC18: 3 | AD18: 1.717390687 | AE18: 1.673337824 | AK18: =VLOOKUP($B18,'Finish Times'!$A$10:$G$40,6,FALSE) -> 69
A19: Firing | B19: Fenix | E19: San Juan 24 | F19: 556 | G19: 218 | H19: =IFERROR(G19+15,"") -> 233 | I19: =IF(T19 = "s",1000/(900+G19),"") -> 0.8944543828 | J19: =IF(T19 ="n",1000/(900+H19),"") ->  | K19: =IF(AK19>0,VLOOKUP($B19,'Finish Times'!$A$10:$G$40,6,FALSE),"") ->  | L19: =IF(AK19>0,VLOOKUP($B19,'Finish Times'!$A$10:$G$40,7,FALSE),"") ->  | M19: =IF(AK19>0,(K19+L19/60)-A$3," ") ->  | N19: =IFERROR(U19," ") ->  | O19: =IFERROR(V19," ") ->  | P19: =IFERROR(N19-$Y$2,"") ->  | R19: =IFERROR(ROUND((1000/Y19)-900,0),"") ->  | T19: s | AB19: 10 | AK19: =VLOOKUP($B19,'Finish Times'!$A$10:$G$40,6,FALSE) -> 0
T20: s | AB20: 11 | AK20: =VLOOKUP($B20,'Finish Times'!$A$10:$G$40,6,FALSE) -> 
T21: n | AB21: 12 | AK21: =VLOOKUP($B21,'Finish Times'!$A$10:$G$40,6,FALSE) -> 
T22: n | AB22: 13 | AK22: =VLOOKUP($B22,'Finish Times'!$A$10:$G$40,6,FALSE) -> 
T23: n | AB23: 14 | AK23: =VLOOKUP($B23,'Finish Times'!$A$10:$G$40,6,FALSE) -> 
T24: n | AB24: 15 | AK24: =VLOOKUP($B24,'Finish Times'!$A$10:$G$40,6,FALSE) -> 
A25: Race Start Time | N25: FLEET TWO
A26: (In case race timer has issues, use clock time as backup and do the math) | Q26: 0 | AE26: 0
A27: (1) Convert seconds to decimal equivalent - see reference sheet | Q27: 0 | AE27: 0
A28: (2) Multiply time in minutes by circled TCF | Q28: 0 | AE28: 0
A30: FLEET TWO | M30: RACE #

Sheet Fleet 3
Y1: Winner
Y2: =MIN(N10:N24) -> 34.06799193
A3: 5 | B3: <-----Minutes after first start
A5: Blackwater Yacht Racing Association - Sign Up Sheet Fleet III (THREE) | Z5: Test
A6: Date: Oct. 8, 2016 2016 Fall Series Race 6 RC: Short and Conover | Y6: new tcf = | Z6: should =
A7: Windward Leeward Race in Bull Run with 13 to 23 mph wind | P7: Time | Q7: Time | R7: Approx | T7: Finish Calculations | Y7: Winner Adj Time | Z7: Winner Adj Time | AC7: # of Boats
G8: Handicap | I8: TCF | K8: Finish Time | M8: Calc(1) | N8: Adj.(2) | P8: Behind | Q8: Behind | R8: H'cap | T8: S for Spin | Y8: /observed | AC8: =MAX(AC10:AC24) -> 3
A9: Skipper | B9: Boat Name | C9: Initials | D9: Guest? | E9: Boat | F9: Sail # | G9: Spin* | H9: Non-Spin* | I9: Spin* | J9: Non-Spin* | K9: Min. | L9: Sec. | M9: Min.dd | N9: Time | O9: Place | P9: Winner | Q9: Boat Ahead | R9: to win | T9: N for non
A10: Perdue | B10: Miss Virginia | E10: Hunter 23.5 | F10: 1309 | G10: 244 | H10: =IFERROR(G10+15,"") -> 259 | I10: =IF(T10 = "s",1000/(900+G10),"") -> 0.8741258741 | J10: =IF(T10 ="n",1000/(900+H10),"") ->  | K10: =IF(AK10>0,VLOOKUP($B10,'Finish Times'!$A$10:$G$40,6,FALSE)," ") -> 50 | L10: =IF(AK10>0,VLOOKUP($B10,'Finish Times'!$A$10:$G$40,7,FALSE)," ") -> 23 | M10: =IF(AK10>0,(K10+L10/60)-A$3," ") -> 45.38333333 | N10: =IFERROR(U10," ") -> 39.67074592 | O10: 3 | P10: =IFERROR(N10-$Y$2,"") -> 5.602753988 | Q10: 4.115190365 | R10: =IFERROR(ROUND((1000/Y10)-900,0),"") -> 432 | T10: s | U10: =IFERROR(IF(M10>0,IF(T10="s",M10*I10,0)+IF(T10="n",M10*J10,0)," "),"") -> 39.67074592 | V10: =IFERROR(RANK(N10,$N$10:$N$24,1),"") -> 3 | Y10: =IFERROR($Y$2/M10,"") -> 0.7506718751 | Z10: =IFERROR(M10*Y10,"") -> 34.06799193 | AB10: 1 | AC10: 3 | AD10: 5.602753988 | AE10: 4.115190365 | AH10: 55 | AI10: 39 | AK10: =VLOOKUP($B10,'Finish Times'!$A$10:$G$40,6,FALSE) -> 50
A11: Schraw | B11: Second Wind | E11: Ericson 23 | F11: 470 | G11: 240 | H11: =IFERROR(G11+15,"") -> 255 | I11: =IF(T11 = "s",1000/(900+G11),"") ->  | J11: =IF(T11 ="n",1000/(900+H11),"") -> 0.8658008658 | K11: =IF(AK11>0,VLOOKUP($B11,'Finish Times'!$A$10:$G$40,6,FALSE)," ") -> 46 | L11: =IF(AK11>0,VLOOKUP($B11,'Finish Times'!$A$10:$G$40,7,FALSE)," ") -> 4 | M11: =IF(AK11>0,(K11+L11/60)-A$3," ") -> 41.06666667 | N11: 35.55555556 | O11: 2 | P11: 1.487563622 | Q11: 1.487563622 | R11: 305 | T11: n | U11: =IFERROR(IF(M11>0,IF(T11="s",M11*I11,0)+IF(T11="n",M11*J11,0)," "),"") -> 35.55555556 | V11: =IFERROR(RANK(N11,$N$10:$N$24,1),"") -> 2 | Y11: 0.8295777256 | Z11: =IFERROR(M11*Y11,"") -> 34.06799193 | AB11: 2 | AC11: 2 | AD11: 1.487563622 | AE11: 1.487563622 | AH11: 56 | AI11: 22 | AK11: =VLOOKUP($B11,'Finish Times'!$A$10:$G$40,6,FALSE) -> 46
A12: Short | B12: Fever | E12: Ericson 23 | F12: 269 | G12: =241+3 -> 244 | H12: 259 | I12: =IF(T12 = "s",1000/(900+G12),"") ->  | J12: =IF(T12 ="n",1000/(900+H12),"") -> 0.8628127696 | K12: =IF(AK12>0,VLOOKUP($B12,'Finish Times'!$A$10:$G$40,6,FALSE)," ") ->  | L12: =IF(AK12>0,VLOOKUP($B12,'Finish Times'!$A$10:$G$40,7,FALSE)," ") ->  | T12: n | AB12: 3 | AH12: 54 | AI12: 9 | AK12: =VLOOKUP($B12,'Finish Times'!$A$10:$G$40,6,FALSE) -> 0
A13: Gobble | B13: Always Something | E13: Hunter 23 | F13: 1256 | G13: 242 | H13: 257 | I13: =IF(T13 = "s",1000/(900+G13),"") ->  | J13: =IF(T13 ="n",1000/(900+H13),"") -> 0.8643042351 | K13: =IF(AK13>0,VLOOKUP($B13,'Finish Times'!$A$10:$G$40,6,FALSE)," ") -> 44 | L13: =IF(AK13>0,VLOOKUP($B13,'Finish Times'!$A$10:$G$40,7,FALSE)," ") -> 25 | M13: 39.41666667 | N13: 34.06799193 | O13: 1 | P13: 0 | R13: 257 | T13: n | U13: 34.06799193 | V13: 1 | Y13: 0.8643042351 | Z13: 34.06799193 | AB13: 4 | AC13: 1 | AD13: 0 | AH13: 62 | AI13: 59 | AK13: =VLOOKUP($B13,'Finish Times'!$A$10:$G$40,6,FALSE) -> 44
A14: Witten | B14: Majical | E14: Cal 25 | F14: 1687 | G14: 224 | H14: 239 | I14: =IF(T14 = "s",1000/(900+G14),"") -> 0.8896797153 | J14: =IF(T14 ="n",1000/(900+H14),"") ->  | K14: =IF(AK14>0,VLOOKUP($B14,'Finish Times'!$A$10:$G$40,6,FALSE)," ") ->  | L14: =IF(AK14>0,VLOOKUP($B14,'Finish Times'!$A$10:$G$40,7,FALSE)," ") ->  | T14: s | AB14: 5 | AH14: 59 | AI14: 12 | AK14: =VLOOKUP($B14,'Finish Times'!$A$10:$G$40,6,FALSE) -> 0
A15: Gillespie | B15: King Bills Revenge | E15: San Juan 21 | F15: 153 | G15: 251 | H15: 266 | J15: 0.8576329331 | N15: =IFERROR(U15," ") ->  | O15: =IFERROR(V15," ") ->  | P15: =IFERROR(N15-$Y$2,"") ->  | R15: =IFERROR(ROUND((1000/Y15)-900,0),"") ->  | T15: n | AB15: 6 | AH15: 56 | AI15: 58 | AK15: =VLOOKUP($B15,'Finish Times'!$A$10:$G$40,6,FALSE) -> 0
T16: n | AB16: 7 | AH16: 64 | AI16: 47 | AK16: =VLOOKUP($B16,'Finish Times'!$A$10:$G$40,6,FALSE) -> 
T17: n | AB17: 8 | AK17: =VLOOKUP($B17,'Finish Times'!$A$10:$G$40,6,FALSE) -> 
T18: n | AB18: 9 | AK18: =VLOOKUP($B18,'Finish Times'!$A$10:$G$40,6,FALSE) -> 
T19: n | AB19: 10 | AK19: =VLOOKUP($B19,'Finish Times'!$A$10:$G$40,6,FALSE) -> 
T20: s | AB20: 11 | AK20: =VLOOKUP($B20,'Finish Times'!$A$10:$G$40,6,FALSE) -> 
T21: n | AB21: 12 | AK21: =VLOOKUP($B21,'Finish Times'!$A$10:$G$40,6,FALSE) -> 
T22: n | AB22: 13 | AK22: =VLOOKUP($B22,'Finish Times'!$A$10:$G$40,6,FALSE) -> 
T23: n | AB23: 14 | AK23: =VLOOKUP($B23,'Finish Times'!$A$10:$G$40,6,FALSE) -> 
T24: n | AB24: 15 | AK24: =VLOOKUP($B24,'Finish Times'!$A$10:$G$40,6,FALSE) -> 
A25: Race Start Time | N25: FLEET THREE
A26: (In case race timer has issues, use clock time as backup and do the math) | Q26: 0 | AE26: 0
A27: (1) Convert seconds to decimal equivalent - see reference sheet | Q27: 0 | AE27: 0
A28: (2) Multiply time in minutes by circled TCF | Q28: 0 | AE28: 0
A30: FLEET THREE | M30: RACE #

Sheet Fleet 4
Y1: Winner
Y2: =MIN(N10:N23) -> 32.74721972
A3: 5 | B3: <-----Minutes after first start
A5: Blackwater Yacht Racing Association - Sign Up Sheet Fleet IV (FOUR) | Z5: Test
A6: Date: Oct. 8, 2016 2016 Fall Series Race 6 RC: Short and Conover | Y6: new tcf = | Z6: should =
A7: Windward Leeward Race in Bull Run with 13 to 23 mph wind | P7: Time | Q7: Time | R7: Approx | T7: Finish Calculations | Y7: Winner Adj Time | Z7: Winner Adj Time | AC7: # of Boats
G8: Handicap | I8: TCF | K8: Finish Time | M8: Calc(1) | N8: Adj.(2) | P8: Behind | Q8: Behind | R8: H'cap | T8: S for Spin | Y8: /observed | AC8: =MAX(AC10:AC23) -> 3
A9: Skipper | B9: Boat Name | C9: Initials | D9: Guest? | E9: Boat | F9: Sail # | G9: Spin* | H9: Non-Spin* | I9: Spin* | J9: Non-Spin* | K9: Min. | L9: Sec. | M9: Min.dd | N9: Time | O9: Place | P9: Winner | Q9: Boat Ahead | R9: to win | T9: N for non
A10: DeMestro | B10: Little Wing | E10: Beneteau 29 | F10: 485 | G10: 168 | H10: =IFERROR(G10+15,"") -> 183 | I10: =IF(T10 = "s",1000/(900+G10),"") ->  | J10: =IF(T10 ="n",1000/(900+H10),"") -> 0.9233610342 | K10: =IF(AK10>0,VLOOKUP($B10,'Finish Times'!$A$10:$G$40,6,FALSE)," ") -> 41 | L10: =IF(AK10>0,VLOOKUP($B10,'Finish Times'!$A$10:$G$40,7,FALSE)," ") -> 32 | M10: =IF(AK10>0,(K10+L10/60)-A$3," ") -> 36.53333333 | N10: =IFERROR(U10," ") -> 33.73345645 | O10: 2 | P10: =IFERROR(N10-$Y$2,"") -> 0.9862367307 | Q10: 0.9862367307 | R10: =IFERROR(ROUND((1000/Y10)-900,0),"") -> 216 | T10: n | U10: =IFERROR(IF(M10>0,IF(T10="s",M10*I10,0)+IF(T10="n",M10*J10,0)," "),"") -> 33.73345645 | V10: =IFERROR(RANK(N10,$N$10:$N$23,1),"") -> 2 | Y10: =IFERROR($Y$2/M10,"") -> 0.8963655032 | Z10: =IFERROR(M10*Y10,"") -> 32.74721972 | AB10: 1 | AC10: 2 | AD10: 0.9862367307 | AE10: 0.9862367307 | AH10: 55 | AI10: 39 | AK10: =VLOOKUP($B10,'Finish Times'!$A$10:$G$40,6,FALSE) -> 41
A11: Oginz | B11: Alarming | E11: S-2 9.2 | F11: 505 | G11: =183+3+3 -> 189 | H11: =IFERROR(G11+15,"") -> 204 | I11: =IF(T11 = "s",1000/(900+G11),"") ->  | J11: =IF(T11 ="n",1000/(900+H11),"") -> 0.9057971014 | K11: =IF(AK11>0,VLOOKUP($B11,'Finish Times'!$A$10:$G$40,6,FALSE)," ") -> 47 | L11: =IF(AK11>0,VLOOKUP($B11,'Finish Times'!$A$10:$G$40,7,FALSE)," ") -> 9 | M11: =IF(AK11>0,(K11+L11/60)-A$3," ") -> 42.15 | N11: 38.17934783 | O11: 3 | P11: 5.432128109 | Q11: 4.445891378 | R11: 387 | T11: n | U11: =IFERROR(IF(M11>0,IF(T11="s",M11*I11,0)+IF(T11="n",M11*J11,0)," "),"") -> 38.17934783 | V11: 3 | Y11: 0.7769209897 | Z11: =IFERROR(M11*Y11,"") -> 32.74721972 | AB11: 2 | AC11: 3 | AD11: 5.432128109 | AE11: 4.445891378 | AH11: 56 | AI11: 22 | AK11: =VLOOKUP($B11,'Finish Times'!$A$10:$G$40,6,FALSE) -> 47
A12: Gearhart | B12: More Mischief | E12: Beneteau 285 | F12: 144 | G12: =193+6 -> 199 | H12: 214 | I12: =IF(T12 = "s",1000/(900+G12),"") ->  | J12: =IF(T12 ="n",1000/(900+H12),"") -> 0.8976660682 | K12: =IF(AK12>0,VLOOKUP($B12,'Finish Times'!$A$10:$G$40,6,FALSE)," ") ->  | L12: =IF(AK12>0,VLOOKUP($B12,'Finish Times'!$A$10:$G$40,7,FALSE)," ") ->  | T12: n | AB12: 4 | AH12: 62 | AI12: 59 | AK12: =VLOOKUP($B12,'Finish Times'!$A$10:$G$40,6,FALSE) -> 0
A13: Johnson | B13: Felicite | E13: S-2 27 IB | F13: 13 | G13: =188+6 -> 194 | H13: 209 | I13: =IF(T13 = "s",1000/(900+G13),"") ->  | J13: =IF(T13 ="n",1000/(900+H13),"") -> 0.9017132552 | K13: =IF(AK13>0,VLOOKUP($B13,'Finish Times'!$A$10:$G$40,6,FALSE)," ") -> 41 | L13: =IF(AK13>0,VLOOKUP($B13,'Finish Times'!$A$10:$G$40,7,FALSE)," ") -> 19 | M13: 36.31666667 | N13: 32.74721972 | O13: 1 | P13: 0 | R13: 209 | T13: n | U13: 32.74721972 | V13: 1 | Y13: 0.9017132552 | Z13: 32.74721972 | AB13: 5 | AC13: 1 | AD13: 0 | AH13: 59 | AI13: 12 | AK13: =VLOOKUP($B13,'Finish Times'!$A$10:$G$40,6,FALSE) -> 41
A14: Conover | B14: Willaway | E14: Columbia 29 | F14: 222 | G14: =225+6 -> 231 | H14: =IFERROR(G14+15,"") -> 246 | I14: =IF(T14 = "s",1000/(900+G14),"") ->  | J14: =IF(T14 ="n",1000/(900+H14),"") -> 0.872600349 | K14: =IF(AK14>0,VLOOKUP($B14,'Finish Times'!$A$10:$G$40,6,FALSE)," ") ->  | L14: =IF(AK14>0,VLOOKUP($B14,'Finish Times'!$A$10:$G$40,7,FALSE)," ") ->  | N14: =IFERROR(U14," ") ->  | O14: =IFERROR(V14," ") ->  | P14: =IFERROR(N14-$Y$2,"") ->  | R14: =IFERROR(ROUND((1000/Y14)-900,0),"") ->  | T14: n | AB14: 6 | AH14: 56 | AI14: 58 | AK14: =VLOOKUP($B14,'Finish Times'!$A$10:$G$40,6,FALSE) -> 0
A15: Gillespie | B15: ie ie bang bang | E15: Hunter 365 | G15: =139+3+3+3 -> 148 | H15: 163 | J15: 0.9407337723 | K15: =IF(AK15>0,VLOOKUP($B15,'Finish Times'!$A$10:$G$40,6,FALSE)," ") ->  | L15: =IF(AK15>0,VLOOKUP($B15,'Finish Times'!$A$10:$G$40,7,FALSE)," ") ->  | T15: n | AB15: 7 | AH15: 64 | AI15: 47 | AK15: =VLOOKUP($B15,'Finish Times'!$A$10:$G$40,6,FALSE) -> 0
A16: Short | B16: Te Aroha | E16: Beneteau 285 | F16: 285 | G16: 199 | H16: =IFERROR(G16+15,"") -> 214 | I16: =IF(T16 = "s",1000/(900+G16),"") ->  | J16: =IF(T16 ="n",1000/(900+H16),"") -> 0.8976660682 | K16: =IF(AK16>0,VLOOKUP($B16,'Finish Times'!$A$10:$G$40,6,FALSE)," ") ->  | L16: =IF(AK16>0,VLOOKUP($B16,'Finish Times'!$A$10:$G$40,7,FALSE)," ") ->  | M16: =IF(AK16>0,(K16+L16/60)-A$3," ") ->  | N16: =IFERROR(U16," ") ->  | O16: =IFERROR(V16," ") ->  | P16: =IFERROR(N16-$Y$2,"") ->  | R16: =IFERROR(ROUND((1000/Y16)-900,0),"") ->  | T16: n | AB16: 8 | AK16: =VLOOKUP($B16,'Finish Times'!$A$10:$G$40,6,FALSE) -> 0
T17: n | AB17: 9 | AK17: =VLOOKUP($B17,'Finish Times'!$A$10:$G$40,6,FALSE) -> 
T18: n | AB18: 10 | AK18: =VLOOKUP($B18,'Finish Times'!$A$10:$G$40,6,FALSE) -> 
T19: n | AB19: 11 | AK19: =VLOOKUP($B19,'Finish Times'!$A$10:$G$40,6,FALSE) -> 
T20: n | AB20: 12 | AK20: =VLOOKUP($B20,'Finish Times'!$A$10:$G$40,6,FALSE) -> 
T21: n | AB21: 13 | AK21: =VLOOKUP($B21,'Finish Times'!$A$10:$G$40,6,FALSE) -> 
T22: n | AB22: 14 | AK22: =VLOOKUP($B22,'Finish Times'!$A$10:$G$40,6,FALSE) -> 
T23: n | AB23: 15 | AK23: =VLOOKUP($B23,'Finish Times'!$A$10:$G$40,6,FALSE) -> 
A24: Race Start Time | N24: FLEET FOUR
A25: (In case race timer has issues, use clock time as backup and do the math) | Q25: 0 | AE25: 0
A26: (1) Convert seconds to decimal equivalent - see reference sheet | Q26: 0 | AE26: 0
A27: (2) Multiply time in minutes by circled TCF | Q27: 0 | AE27: 0
Q28: 0 | AE28: 0
A29: FLEET FOUR | M29: RACE #

Sheet Fleet 1 and 2 Combo
A1: Control Z to run macro | Y1: Winner
Y2: =MIN(N10:N27) -> 51.97819315
A3: 0 | B3: <-----Minutes after first start
A5: Blackwater Yacht Racing Association - Race Results Fleets I & 2 | Z5: Test
A6: Date: Oct. 8, 2016 2016 Fall Series Race 6 RC: Short and Conover | Y6: new tcf = | Z6: should =
A7: Windward Leeward Race in Bull Run with 13 to 23 mph wind | P7: Time | Q7: Time | R7: Approx | T7: Finish Calculations | Y7: Winner Adj Time | Z7: Winner Adj Time | AC7: # of Boats
G8: Handicap | I8: TCF | K8: Finish Time | M8: Calc(1) | N8: Adj.(2) | P8: Behind | Q8: Behind | R8: H'cap | T8: S for Spin | Y8: /observed | AC8: =MAX(AC10:AC27) -> 7
A9: Skipper | B9: Boat Name | C9: Initials | D9: Guest? | E9: Boat | F9: Sail # | G9: Spin* | H9: Non-Spin* | I9: Spin* | J9: Non-Spin* | K9: Min. | L9: Sec. | M9: Min.dd | N9: Time | O9: Place | P9: Winner | Q9: Boat Ahead | R9: to win | T9: N for non
A10: Cliborne | B10: Bandit | E10: J/24 | F10: 2792 | G10: 170 | H10: =IFERROR(G10+15,"") -> 185 | I10: =IF(T10 = "s",1000/(900+G10),"") -> 0.9345794393 | J10: =IF(T10 ="n",1000/(900+H10),"") ->  | K10: =IF($AK10>0,(VLOOKUP($B10,'Finish Times'!$A$10:$G$40,6,FALSE)),"") -> 57 | L10: =IF($AK10>0,(VLOOKUP($B10,'Finish Times'!$A$10:$G$40,7,FALSE)),"") -> 9 | M10: =IF(AK10>0,(K10+L10/60)-A$3," ") -> 57.15 | N10: =IFERROR(U10," ") -> 53.41121495 | O10: 2 | P10: =IFERROR(N10-$Y$2,"") -> 1.433021807 | Q10: 1.433021807 | R10: =IFERROR(ROUND((1000/Y10)-900,0),"") -> 199 | T10: s | U10: =IFERROR(IF(M10>0,IF(T10="s",M10*I10,0)+IF(T10="n",M10*J10,0)," "),"") -> 53.41121495 | V10: =IFERROR(RANK(N10,$N$10:$N$27,1),"") -> 2 | Y10: =IFERROR($Y$2/M10,"") -> 0.909504692 | Z10: =IFERROR(M10*Y10,"") -> 51.97819315 | AB10: 1 | AC10: 2 | AD10: 1.433021807 | AE10: 1.433021807 | AH10: 55 | AI10: 39 | AK10: =(VLOOKUP($B10,'Finish Times'!$A$10:$G$40,6,FALSE)) -> 57
A11: Forqurean | B11: Dark Horse | E11: J/24 | F11: 1024 | G11: 170 | H11: 185 | I11: 0.9345794393 | J11: =IF(T11 ="n",1000/(900+H11),"") ->  | K11: =IF($AK11>0,(VLOOKUP($B11,'Finish Times'!$A$10:$G$40,6,FALSE)),"") -> 59 | L11: =IF($AK11>0,(VLOOKUP($B11,'Finish Times'!$A$10:$G$40,7,FALSE)),"") -> 11 | M11: =IF(AK11>0,(K11+L11/60)-A$3," ") -> 59.18333333 | N11: 55.31152648 | O11: 3 | P11: 3.333333333 | Q11: 1.900311526 | R11: 239 | T11: s | U11: =IFERROR(IF(M11>0,IF(T11="s",M11*I11,0)+IF(T11="n",M11*J11,0)," "),"") -> 55.31152648 | V11: 3 | Y11: 0.8782572765 | Z11: =IFERROR(M11*Y11,"") -> 51.97819315 | AB11: 2 | AC11: 3 | AD11: 3.333333333 | AE11: 1.900311526 | AH11: 56 | AI11: 22 | AK11: =(VLOOKUP($B11,'Finish Times'!$A$10:$G$40,6,FALSE)) -> 59
A12: Maloney | B12: Boogie Board | E12: J/24 | F12: 1742 | G12: 170 | H12: 185 | I12: 0.9345794393 | J12: =IF(T12 ="n",1000/(900+H12),"") ->  | K12: =IF($AK12>0,(VLOOKUP($B12,'Finish Times'!$A$10:$G$40,6,FALSE)),"") ->  | L12: =IF($AK12>0,(VLOOKUP($B12,'Finish Times'!$A$10:$G$40,7,FALSE)),"") ->  | T12: s | AB12: 3 | AH12: 54 | AI12: 9 | AK12: =(VLOOKUP($B12,'Finish Times'!$A$10:$G$40,6,FALSE)) -> 0
A13: Phillip | B13: Rascal | E13: J/24 | F13: 3511 | G13: 170 | H13: 185 | I13: 0.9345794393 | J13: =IF(T13 ="n",1000/(900+H13),"") ->  | K13: =IF($AK13>0,(VLOOKUP($B13,'Finish Times'!$A$10:$G$40,6,FALSE)),"") -> 55 | L13: =IF($AK13>0,(VLOOKUP($B13,'Finish Times'!$A$10:$G$40,7,FALSE)),"") -> 37 | M13: 55.61666667 | N13: 51.97819315 | O13: 1 | P13: 0 | R13: 170 | T13: s | U13: 51.97819315 | V13: 1 | Y13: 0.9345794393 | Z13: 51.97819315 | AB13: 4 | AC13: 1 | AD13: 0 | AH13: 62 | AI13: 59 | AK13: =(VLOOKUP($B13,'Finish Times'!$A$10:$G$40,6,FALSE)) -> 55
A14: Sampson | B14: Time Warp | E14: J/24 | F14: 1248 | G14: 170 | H14: 185 | I14: 0.9345794393 | J14: =IF(T14 ="n",1000/(900+H14),"") ->  | K14: =IF($AK14>0,(VLOOKUP($B14,'Finish Times'!$A$10:$G$40,6,FALSE)),"") ->  | L14: =IF($AK14>0,(VLOOKUP($B14,'Finish Times'!$A$10:$G$40,7,FALSE)),"") ->  | T14: s | AB14: 5 | AH14: 59 | AI14: 12 | AK14: =(VLOOKUP($B14,'Finish Times'!$A$10:$G$40,6,FALSE)) -> 0
A15: Firing | B15: Fenix | E15: San Juan 24 | F15: 556 | G15: 218 | H15: 233 | I15: 0.8944543828 | K15: =IF($AK15>0,(VLOOKUP($B15,'Finish Times'!$A$10:$G$40,6,FALSE)),"") ->  | L15: =IF($AK15>0,(VLOOKUP($B15,'Finish Times'!$A$10:$G$40,7,FALSE)),"") ->  | T15: s | AB15: 6 | AH15: 56 | AI15: 58 | AK15: =(VLOOKUP($B15,'Finish Times'!$A$10:$G$40,6,FALSE)) -> 0
A16: Schiable | B16: Catch 22 | E16: J22 | F16: 826 | G16: 177 | H16: 192 | I16: 0.9285051068 | K16: =IF($AK16>0,(VLOOKUP($B16,'Finish Times'!$A$10:$G$40,6,FALSE)),"") -> 80 | L16: =IF($AK16>0,(VLOOKUP($B16,'Finish Times'!$A$10:$G$40,7,FALSE)),"") -> 30 | M16: 80.5 | N16: 74.7446611 | O16: 7 | P16: 22.76646795 | Q16: 13.37969332 | R16: 649 | T16: s | U16: 74.7446611 | V16: 7 | Y16: 0.6456918403 | Z16: 51.97819315 | AB16: 7 | AC16: 7 | AD16: 22.76646795 | AE16: 13.37969332 | AH16: 64 | AI16: 47 | AK16: =(VLOOKUP($B16,'Finish Times'!$A$10:$G$40,6,FALSE)) -> 80
A17: Gietl | B17: UDO | E17: VX One | F17: 119 | G17: 107 | H17: 122 | I17: 0.9930486594 | K17: =IF($AK17>0,(VLOOKUP($B17,'Finish Times'!$A$10:$G$40,6,FALSE)),"") ->  | L17: =IF($AK17>0,(VLOOKUP($B17,'Finish Times'!$A$10:$G$40,7,FALSE)),"") ->  | T17: s | AB17: 9 | AK17: =(VLOOKUP($B17,'Finish Times'!$A$10:$G$40,6,FALSE)) -> 0
A18: Theis | B18: Gotcha | E18: S-2 6.7 | F18: 75 | G18: 208 | H18: =IFERROR(G18+15,"") -> 223 | I18: =IF(T18 = "s",1000/(900+G18),"") -> 0.9025270758 | J18: =IF(T18 ="n",1000/(900+H18),"") ->  | K18: =IF($AK18>0,(VLOOKUP($B18,'Finish Times'!$A$10:$G$40,6,FALSE)),"") ->  | L18: =IF($AK18>0,(VLOOKUP($B18,'Finish Times'!$A$10:$G$40,7,FALSE)),"") ->  | M18: =IF(AK18>0,(K18+L18/60)-A$3," ") ->  | N18: =IFERROR(U18," ") ->  | O18: =IFERROR(V18," ") ->  | P18: =IFERROR(N18-$Y$2,"") ->  | R18: =IFERROR(ROUND((1000/Y18)-900,0),"") ->  | T18: s | AB18: 10 | AK18: =(VLOOKUP($B18,'Finish Times'!$A$10:$G$40,6,FALSE)) -> 0
A19: Hull | B19: Fools Game | E19: Pearson 26 | F19: 1183 | G19: 216 | H19: 231 | I19: 0.8960573477 | J19: =IF(T19 ="n",1000/(900+H19),"") ->  | K19: =IF($AK19>0,(VLOOKUP($B19,'Finish Times'!$A$10:$G$40,6,FALSE)),"") ->  | L19: =IF($AK19>0,(VLOOKUP($B19,'Finish Times'!$A$10:$G$40,7,FALSE)),"") ->  | M19: =IF(AK19>0,(K19+L19/60)-A$3," ") ->  | N19: =IFERROR(U19," ") ->  | O19: =IFERROR(V19," ") ->  | P19: =IFERROR(N19-$Y$2,"") ->  | T19: s | AB19: 11 | AK19: =(VLOOKUP($B19,'Finish Times'!$A$10:$G$40,6,FALSE)) -> 0
A20: Evans | B20: Severence | E20: C&C 25 | F20: 14755 | G20: 218 | H20: 233 | I20: 0.8944543828 | K20: =IF($AK20>0,(VLOOKUP($B20,'Finish Times'!$A$10:$G$40,6,FALSE)),"") ->  | L20: =IF($AK20>0,(VLOOKUP($B20,'Finish Times'!$A$10:$G$40,7,FALSE)),"") ->  | T20: s | AB20: 12 | AK20: =(VLOOKUP($B20,'Finish Times'!$A$10:$G$40,6,FALSE)) -> 0
A21: Witten | B21: Majical | E21: Cal 25 | F21: 1687 | G21: 224 | H21: 239 | I21: 0.8896797153 | K21: =IF($AK21>0,(VLOOKUP($B21,'Finish Times'!$A$10:$G$40,6,FALSE)),"") ->  | L21: =IF($AK21>0,(VLOOKUP($B21,'Finish Times'!$A$10:$G$40,7,FALSE)),"") ->  | T21: s | AB21: 13 | AK21: =(VLOOKUP($B21,'Finish Times'!$A$10:$G$40,6,FALSE)) -> 0
A22: Breckenridge | B22: StressLess | E22: Harbor 20 | F22: 212 | G22: 220 | H22: 235 | J22: 0.8810572687 | K22: =IF($AK22>0,(VLOOKUP($B22,'Finish Times'!$A$10:$G$40,6,FALSE)),"") -> 67 | L22: =IF($AK22>0,(VLOOKUP($B22,'Finish Times'!$A$10:$G$40,7,FALSE)),"") -> 45 | M22: 67.75 | N22: 59.69162996 | O22: 5 | P22: 7.71343681 | Q22: 0.04405286344 | R22: 403 | T22: n | U22: 59.69162996 | V22: 5 | Y22: 0.7672058029 | AB22: 14 | AC22: 5 | AD22: 7.71343681 | AE22: 0.04405286344 | AK22: =(VLOOKUP($B22,'Finish Times'!$A$10:$G$40,6,FALSE)) -> 67
A23: Miekina | B23: Synergy | E23: Harbor 20 | F23: 215 | G23: 220 | H23: 235 | J23: 0.8810572687 | K23: =IF($AK23>0,(VLOOKUP($B23,'Finish Times'!$A$10:$G$40,6,FALSE)),"") ->  | L23: =IF($AK23>0,(VLOOKUP($B23,'Finish Times'!$A$10:$G$40,7,FALSE)),"") ->  | T23: n | AB23: 15 | AK23: =(VLOOKUP($B23,'Finish Times'!$A$10:$G$40,6,FALSE)) -> 0
A24: Hemler | B24: Stoic | E24: Harbor 20 | F24: 330 | G24: 220 | H24: 235 | J24: 0.8810572687 | K24: =IF($AK24>0,(VLOOKUP($B24,'Finish Times'!$A$10:$G$40,6,FALSE)),"") -> 67 | L24: =IF($AK24>0,(VLOOKUP($B24,'Finish Times'!$A$10:$G$40,7,FALSE)),"") -> 42 | M24: 67.7 | N24: 59.64757709 | O24: 4 | P24: 7.669383946 | Q24: 4.336050613 | R24: 402 | T24: n | U24: 59.64757709 | V24: 4 | Y24: 0.7677724246 | AC24: 4 | AD24: 7.669383946 | AE24: 4.336050613 | AK24: =(VLOOKUP($B24,'Finish Times'!$A$10:$G$40,6,FALSE)) -> 67
A25: Tunnell | B25: Courageous | E25: Harbor 20 | F25: 278 | G25: 220 | H25: 235 | J25: 0.8810572687 | K25: =IF($AK25>0,(VLOOKUP($B25,'Finish Times'!$A$10:$G$40,6,FALSE)),"") ->  | L25: =IF($AK25>0,(VLOOKUP($B25,'Finish Times'!$A$10:$G$40,7,FALSE)),"") ->  | Q25: 1.673337824 | T25: n | AC25: 6 | AD25: 9.386774633 | AE25: 1.673337824 | AK25: =(VLOOKUP($B25,'Finish Times'!$A$10:$G$40,6,FALSE)) -> 0
A26: Whitt | B26: Destiny | E26: Alerion 20 | F26: 6 | G26: 223 | H26: =IFERROR(G26+15,"") -> 238 | I26: =IF(T26 = "s",1000/(900+G26),"") ->  | J26: =IF(T26 ="n",1000/(900+H26),"") -> 0.8787346221 | K26: =IF($AK26>0,(VLOOKUP($B26,'Finish Times'!$A$10:$G$40,6,FALSE)),"") -> 69 | L26: =IF($AK26>0,(VLOOKUP($B26,'Finish Times'!$A$10:$G$40,7,FALSE)),"") -> 50 | M26: =IF(AK26>0,(K26+L26/60)-A$3," ") -> 69.83333333 | N26: =IFERROR(U26," ") -> 61.36496778 | O26: =IFERROR(V26," ") -> 6 | P26: =IFERROR(N26-$Y$2,"") -> 9.386774633 | R26: =IFERROR(ROUND((1000/Y26)-900,0),"") -> 444 | T26: n | U26: 61.36496778 | V26: 6 | Y26: 0.7443178016 | Z26: 51.97819315 | AK26: =(VLOOKUP($B26,'Finish Times'!$A$10:$G$40,6,FALSE)) -> 69
M27: =IF(K27>0,(K27+L27/60)-A$3," ") ->  | T27: n | AK27: =(VLOOKUP($B27,'Finish Times'!$A$10:$G$40,6,FALSE)) -> 
A28: Race Start Time | N28: FLEET ONE & TWO
A29: (In case race timer has issues, use clock time as backup and do the math)
A30: (1) Convert seconds to decimal equivalent - see reference sheet
A31: (2) Multiply time in minutes by circled TCF
A33: FLEET ONE | M33: RACE #

Sheet Fleet 3 and 4 Combo
Y1: Winner
Y2: =MIN(N10:N23) -> 32.74721972
A3: 5 | B3: <-----Minutes after first start
A5: Blackwater Yacht Racing Association - Race Results Fleets 3 & 4 | Z5: Test
A6: Date: October 6, 2016 2016 Fall Series Race 6 RC: Short and Conover | Y6: new tcf = | Z6: should =
P7: Time | Q7: Time | R7: Approx | T7: Finish Calculations | Y7: Winner Adj Time | Z7: Winner Adj Time | AC7: # of Boats
G8: Handicap | I8: TCF | K8: Finish Time | M8: Calc(1) | N8: Adj.(2) | P8: Behind | Q8: Behind | R8: H'cap | T8: S for Spin | Y8: /observed | AC8: =MAX(AC10:AC23) -> 6
A9: Skipper | B9: Boat Name | C9: Initials | D9: Guest? | E9: Boat | F9: Sail # | G9: Spin* | H9: Non-Spin* | I9: Spin* | J9: Non-Spin* | K9: Min. | L9: Sec. | M9: Min.dd | N9: Time | O9: Place | P9: Winner | Q9: Boat Ahead | R9: to win | T9: N for non
A10: Perdue | B10: Miss Virginia | E10: Hunter 23.5 | F10: 1309 | G10: 244 | H10: =IFERROR(G10+15,"") -> 259 | I10: =IF(T10 = "s",1000/(900+G10),"") -> 0.8741258741 | J10: =IF(T10 ="n",1000/(900+H10),"") ->  | K10: =IF($AK10>0,(VLOOKUP($B10,'Finish Times'!$A$10:$G$40,6,FALSE)),"") -> 50 | L10: =IF($AK10>0,(VLOOKUP($B10,'Finish Times'!$A$10:$G$40,7,FALSE)),"") -> 23 | M10: =IF(AK10>0,(K10+L10/60)-A$3," ") -> 45.38333333 | N10: =IFERROR(U10," ") -> 39.67074592 | O10: 6 | P10: =IFERROR(N10-$Y$2,"") -> 6.923526203 | Q10: 1.491398095 | R10: =IFERROR(ROUND((1000/Y10)-900,0),"") -> 486 | T10: s | U10: =IFERROR(IF(M10>0,IF(T10="s",M10*I10,0)+IF(T10="n",M10*J10,0)," "),"") -> 39.67074592 | V10: =IFERROR(RANK(N10,$N$10:$N$23,1),"") -> 6 | Y10: =IFERROR($Y$2/M10,"") -> 0.7215692923 | Z10: =IFERROR(M10*Y10,"") -> 32.74721972 | AB10: 1 | AC10: 6 | AD10: 6.923526203 | AE10: 1.491398095 | AH10: 55 | AI10: 39 | AK10: =(VLOOKUP($B10,'Finish Times'!$A$10:$G$40,6,FALSE)) -> 50
A11: Schraw | B11: Second Wind | E11: Ericson 23 | F11: 470 | G11: 240 | H11: =IFERROR(G11+15,"") -> 255 | I11: =IF(T11 = "s",1000/(900+G11),"") ->  | J11: =IF(T11 ="n",1000/(900+H11),"") -> 0.8658008658 | K11: =IF($AK11>0,(VLOOKUP($B11,'Finish Times'!$A$10:$G$40,6,FALSE)),"") -> 46 | L11: =IF($AK11>0,(VLOOKUP($B11,'Finish Times'!$A$10:$G$40,7,FALSE)),"") -> 4 | M11: 41.06666667 | N11: 35.55555556 | O11: 4 | P11: 2.808335838 | Q11: 1.487563622 | R11: 354 | T11: n | U11: =IFERROR(IF(M11>0,IF(T11="s",M11*I11,0)+IF(T11="n",M11*J11,0)," "),"") -> 35.55555556 | V11: 4 | Y11: 0.7974160645 | Z11: =IFERROR(M11*Y11,"") -> 32.74721972 | AB11: 2 | AC11: 4 | AD11: 2.808335838 | AE11: 1.487563622 | AH11: 56 | AI11: 22 | AK11: =(VLOOKUP($B11,'Finish Times'!$A$10:$G$40,6,FALSE)) -> 46
A12: Short | B12: Fever | E12: Ericson 23 | F12: 269 | G12: =241+3 -> 244 | H12: 259 | I12: =IF(T12 = "s",1000/(900+G12),"") ->  | J12: =IF(T12 ="n",1000/(900+H12),"") -> 0.8628127696 | K12: =IF($AK12>0,(VLOOKUP($B12,'Finish Times'!$A$10:$G$40,6,FALSE)),"") ->  | L12: =IF($AK12>0,(VLOOKUP($B12,'Finish Times'!$A$10:$G$40,7,FALSE)),"") ->  | M12: =IF(AK12>0,(K12+L12/60)-A$3," ") ->  | N12: =IFERROR(U12," ") ->  | O12: =IFERROR(V12," ") ->  | P12: =IFERROR(N12-$Y$2,"") ->  | R12: =IFERROR(ROUND((1000/Y12)-900,0),"") ->  | T12: n | AB12: 3 | AH12: 54 | AI12: 9 | AK12: =(VLOOKUP($B12,'Finish Times'!$A$10:$G$40,6,FALSE)) -> 0
A13: Gobble | B13: Always Something | E13: Hunter 23 | F13: 1256 | G13: 242 | H13: 257 | I13: =IF(T13 = "s",1000/(900+G13),"") ->  | J13: =IF(T13 ="n",1000/(900+H13),"") -> 0.8643042351 | K13: =IF($AK13>0,(VLOOKUP($B13,'Finish Times'!$A$10:$G$40,6,FALSE)),"") -> 44 | L13: =IF($AK13>0,(VLOOKUP($B13,'Finish Times'!$A$10:$G$40,7,FALSE)),"") -> 25 | M13: 39.41666667 | N13: 34.06799193 | O13: 3 | P13: 1.320772216 | Q13: 0.334535485 | R13: 304 | T13: n | U13: 34.06799193 | V13: 3 | Y13: 0.8307962719 | Z13: 32.74721972 | AB13: 4 | AC13: 3 | AD13: 1.320772216 | AE13: 0.334535485 | AH13: 62 | AI13: 59 | AK13: =(VLOOKUP($B13,'Finish Times'!$A$10:$G$40,6,FALSE)) -> 44
A14: Witten | B14: Majical | E14: Cal 25 | F14: 1687 | G14: 224 | H14: 239 | I14: =IF(T14 = "s",1000/(900+G14),"") -> 0.8896797153 | J14: =IF(T14 ="n",1000/(900+H14),"") ->  | K14: =IF($AK14>0,(VLOOKUP($B14,'Finish Times'!$A$10:$G$40,6,FALSE)),"") ->  | L14: =IF($AK14>0,(VLOOKUP($B14,'Finish Times'!$A$10:$G$40,7,FALSE)),"") ->  | T14: s | AB14: 5 | AH14: 59 | AI14: 12 | AK14: =(VLOOKUP($B14,'Finish Times'!$A$10:$G$40,6,FALSE)) -> 0
A15: DeMestro | B15: Little Wing | E15: Beneteau 29 | F15: 485 | G15: 168 | H15: =IFERROR(G15+15,"") -> 183 | I15: =IF(T15 = "s",1000/(900+G15),"") ->  | J15: =IF(T15 ="n",1000/(900+H15),"") -> 0.9233610342 | K15: =IF($AK15>0,(VLOOKUP($B15,'Finish Times'!$A$10:$G$40,6,FALSE)),"") -> 41 | L15: =IF($AK15>0,(VLOOKUP($B15,'Finish Times'!$A$10:$G$40,7,FALSE)),"") -> 32 | M15: 36.53333333 | N15: =IFERROR(U15," ") -> 33.73345645 | O15: =IFERROR(V15," ") -> 2 | P15: =IFERROR(N15-$Y$2,"") -> 0.9862367307 | Q15: 0.9862367307 | R15: =IFERROR(ROUND((1000/Y15)-900,0),"") -> 216 | T15: n | U15: 33.73345645 | V15: 2 | Y15: 0.8963655032 | Z15: 32.74721972 | AB15: 6 | AC15: 2 | AD15: 0.9862367307 | AE15: 0.9862367307 | AH15: 56 | AI15: 58 | AK15: =(VLOOKUP($B15,'Finish Times'!$A$10:$G$40,6,FALSE)) -> 41
A16: Oginz | B16: Alarming | E16: S-2 9.2 | F16: 505 | G16: =183+3+3 -> 189 | H16: 204 | J16: 0.9057971014 | K16: =IF($AK16>0,(VLOOKUP($B16,'Finish Times'!$A$10:$G$40,6,FALSE)),"") -> 47 | L16: =IF($AK16>0,(VLOOKUP($B16,'Finish Times'!$A$10:$G$40,7,FALSE)),"") -> 9 | M16: 42.15 | N16: 38.17934783 | O16: 5 | P16: 5.432128109 | Q16: 2.623792271 | R16: 387 | T16: n | U16: 38.17934783 | V16: 5 | Y16: 0.7769209897 | Z16: 32.74721972 | AB16: 7 | AC16: 5 | AD16: 5.432128109 | AE16: 2.623792271 | AH16: 64 | AI16: 47 | AK16: =(VLOOKUP($B16,'Finish Times'!$A$10:$G$40,6,FALSE)) -> 47
A17: Gearhart | B17: More Mischief | E17: Beneteau 285 | F17: 144 | G17: =193+6 -> 199 | H17: 214 | J17: 0.8976660682 | K17: =IF($AK17>0,(VLOOKUP($B17,'Finish Times'!$A$10:$G$40,6,FALSE)),"") ->  | L17: =IF($AK17>0,(VLOOKUP($B17,'Finish Times'!$A$10:$G$40,7,FALSE)),"") ->  | M17: =IF(AK17>0,(K17+L17/60)-A$3," ") ->  | T17: n | AB17: 9 | AK17: =(VLOOKUP($B17,'Finish Times'!$A$10:$G$40,6,FALSE)) -> 0
A18: Johnson | B18: Felicite | E18: S-2 27 IB | F18: 13 | G18: =188+6 -> 194 | H18: 209 | J18: 0.9017132552 | K18: =IF($AK18>0,(VLOOKUP($B18,'Finish Times'!$A$10:$G$40,6,FALSE)),"") -> 41 | L18: =IF($AK18>0,(VLOOKUP($B18,'Finish Times'!$A$10:$G$40,7,FALSE)),"") -> 19 | M18: 36.31666667 | N18: 32.74721972 | O18: 1 | P18: 0 | R18: 209 | T18: n | U18: 32.74721972 | V18: 1 | Y18: 0.9017132552 | Z18: 32.74721972 | AB18: 10 | AC18: 1 | AD18: 0 | AK18: =(VLOOKUP($B18,'Finish Times'!$A$10:$G$40,6,FALSE)) -> 41
A19: Conover | B19: Willaway | E19: Columbia 29 | F19: 222 | G19: =225+6 -> 231 | H19: 246 | J19: 0.872600349 | K19: =IF($AK19>0,(VLOOKUP($B19,'Finish Times'!$A$10:$G$40,6,FALSE)),"") ->  | L19: =IF($AK19>0,(VLOOKUP($B19,'Finish Times'!$A$10:$G$40,7,FALSE)),"") ->  | T19: n | AB19: 11 | AK19: =(VLOOKUP($B19,'Finish Times'!$A$10:$G$40,6,FALSE)) -> 0
A20: Gillespie | B20: ie ie bang bang | E20: Hunter 365 | F20: 8 | G20: =139+3+3+3 -> 148 | H20: =IFERROR(G20+15,"") -> 163 | J20: 0.9407337723 | K20: =IF($AK20>0,(VLOOKUP($B20,'Finish Times'!$A$10:$G$40,6,FALSE)),"") ->  | L20: =IF($AK20>0,(VLOOKUP($B20,'Finish Times'!$A$10:$G$40,7,FALSE)),"") ->  | T20: n | AB20: 12 | AK20: =(VLOOKUP($B20,'Finish Times'!$A$10:$G$40,6,FALSE)) -> 0
A21: Short | B21: Te Aroha | E21: Beneteau 285 | F21: 285 | G21: 199 | H21: =IFERROR(G21+15,"") -> 214 | I21: =IF(T21 = "s",1000/(900+G21),"") ->  | J21: =IF(T21 ="n",1000/(900+H21),"") -> 0.8976660682 | K21: =IF($AK21>0,(VLOOKUP($B21,'Finish Times'!$A$10:$G$40,6,FALSE)),"") ->  | L21: =IF($AK21>0,(VLOOKUP($B21,'Finish Times'!$A$10:$G$40,7,FALSE)),"") ->  | M21: =IF(AK21>0,(K21+L21/60)-A$3," ") ->  | N21: =IFERROR(U21," ") ->  | O21: =IFERROR(V21," ") ->  | P21: =IFERROR(N21-$Y$2,"") ->  | R21: =IFERROR(ROUND((1000/Y21)-900,0),"") ->  | T21: n | AB21: 13 | AK21: =(VLOOKUP($B21,'Finish Times'!$A$10:$G$40,6,FALSE)) -> 0
A22: Gillespie | B22: Kiing Bill | E22: San Juan 21 | F22: 153 | G22: 251 | H22: =IFERROR(G22+15,"") -> 266 | J22: 0.8576329331 | T22: n | AB22: 14 | AK22: =(VLOOKUP($B22,'Finish Times'!$A$10:$G$40,6,FALSE)) -> 
T23: n | AB23: 15 | AK23: =(VLOOKUP($B23,'Finish Times'!$A$10:$G$40,6,FALSE)) -> 
A24: Race Start Time | N24: FLEET THREE & FOUR | AB24: 16 | AK24: =(VLOOKUP($B24,'Finish Times'!$A$10:$G$40,6,FALSE)) -> 
A25: (In case race timer has issues, use clock time as backup and do the math) | Q25: 0 | AB25: 17 | AE25: 0 | AK25: =(VLOOKUP($B25,'Finish Times'!$A$10:$G$40,6,FALSE)) -> 
A26: (1) Convert seconds to decimal equivalent - see reference sheet | Q26: 0 | AB26: 18 | AE26: 0 | AK26: =(VLOOKUP($B26,'Finish Times'!$A$10:$G$40,6,FALSE)) -> 
A27: (2) Multiply time in minutes by circled TCF | Q27: 0 | AB27: 19 | AE27: 0 | AK27: =(VLOOKUP($B27,'Finish Times'!$A$10:$G$40,6,FALSE)) -> 
Q28: 0 | AE28: 0
A29: FLEET THREE | M29: RACE #
